Cogmind - Beta 14 *** ADVENTURER MODE // 2024.08.13 @ 22:47:00 Player: LOXOTAN Result: Destroyed by as-21320 with Assembled Blade Performance ------------- Evolutions (0) 0 Regions Visited (4) 800 Robots Destroyed (17) 85 Value Destroyed (447) 447 Prototype IDs (25) 500 Alien Tech Used (0) 0 Bonus (300) 300 TOTAL SCORE: 2132 Bonus ------- Aligned with FarCom 300 Cogmind --------- Core Integrity 0/250 Matter 247/300 Energy 77/100 System Corruption 0% Temperature Cool (0) Movement Core (100) Ox1 Location -9/Mines Parts ------- > --- POWER (1) -------- (None) > --- PROPULSION (2) --- (None) > --- UTILITY (2) ------ Structural Scanner ECM Suite > --- WEAPON (2) ------- Light Assault Rifle > --- INVENTORY (5) ---- Flying Fortress v7 Peak State ------------ > --- POWER ------------ Ion Engine > --- PROPULSION ------- Light Treads > --- UTILITY ---------- Structural Scanner ECM Suite > --- WEAPON ----------- Light Assault Rifle Field Lobotomy Kit > --- INVENTORY -------- Flying Fortress v7 [Rating: 18] Favorites ----------- Power Ion Engine Engine Ion Engine Propulsion Light Treads Treads Light Treads Utility Structural Scanner Device Structural Scanner Weapon Light Cannon Ballistic Gun Light Assault Rifle Ballistic Cannon Light Cannon Special Weapon Field Lobotomy Kit Special Melee Weapon Datajack Build | -11 -10 -10 -10 -9 ------- Run | Yrd Mat Min Exi Min Slots Evolved . | . . . . . Power . | . . . . . Propulsion . | . . . . . Utility . | . . . . . Weapon . | . . . . . Parts Attached 14 | 5 7 . 2 . Power 2 | 1 1 . . . Engine 2 | 1 1 . . . Core . | . . . . . Reactor . | . . . . . Propulsion 2 | 2 . . . . Treads 2 | 2 . . . . Leg . | . . . . . Wheel . | . . . . . Hover . | . . . . . Flight . | . . . . . Utility 3 | . 2 . 1 . Device 3 | . 2 . 1 . Storage . | . . . . . Processor . | . . . . . Hackware . | . . . . . Protection . | . . . . . Artifact . | . . . . . Weapon 7 | 2 4 . 1 . Energy Gun . | . . . . . Energy Cannon . | . . . . . Ballistic Gun 4 | 2 2 . . . Ballistic Cannon 1 | . 1 . . . Launcher . | . . . . . Special Weapon 1 | . . . 1 . Impact Weapon . | . . . . . Slashing Weapon . | . . . . . Piercing Weapon . | . . . . . Special Melee Weapon 1 | . 1 . . . Unidentified Prototypes 2 | . . . 2 . Parts Lost 5 | . 2 1 . 2 Power 2 | . 1 . . 1 Propulsion 2 | . . 1 . 1 Utility . | . . . . . Weapon 1 | . 1 . . . Highest Loss Streak 2 | . 1 1 . 2 To Critical Strikes . | . . . . . Average Slot Usage (%) 80 | . 80 88 78 73 Engine 13 | . 12 14 14 8 Treads 19 | . 28 17 14 11 Device 18 | . 10 28 21 28 Ballistic Gun 12 | . 10 14 14 14 Ballistic Cannon 10 | . 13 14 7 . Special Weapon 3 | . . . 6 11 Special Melee Weapon 1 | . 3 . . . Peak Build Rating 18 | 5 7 7 18 18 Average Rating 8 | 3 5 6 10 15 On Entrance 7 | . 5 7 6 18 Naked Turns . | . . . . . Heaviest Build 17 | 8 12 12 17 17 Greatest Support 40 | 40 40 40 20 20 Greatest Overweight (x) . | . . . . . Average Overweight (x) . | . . . . . Largest Inventory Capacity 5 | 5 5 5 5 5 Average Capacity 5 | 5 5 5 5 5 Most Carried 5 | 2 4 2 5 4 Average Carried 2 | . 2 2 3 4 Final Capacity 5 | 5 5 5 5 5 Final Carried 4 | 1 2 2 4 4 Class Distribution -------------------- 58% | Mutant 41% | Infiltrator-Mutant Dominant Class ---------------- Mutant | -10/Materials Infiltrator-Mutant | -10/Mines Infiltrator-Mutant | -10/Exiles Infiltrator-Mutant | -9/Mines Resources | -11 -10 -10 -10 -9 ----------- Run | Yrd Mat Min Exi Min Matter Collected 644 | 228 310 87 . 19 Remotely . | . . . . . Salvage Created 380 | . 297 72 . 11 Parts 20 | . 13 7 . . Haulers Intercepted . | . . . . . Recyclers Shooed 1 | . 1 . . . Parts Field Recycled . | . . . . . Retrieved Matter . | . . . . . Parts Self-Destructed . | . . . . . Prevented . | . . . . . Kills | -11 -10 -10 -10 -9 ------- Run | Yrd Mat Min Exi Min Combat Hostiles Destroyed 16 | . 9 6 . 1 Guns 7 | . 3 3 . 1 Cannons 9 | . 6 3 . . Classes Destroyed 4 | . 2 1 . 1 Watcher 2 | . 2 . . . Swarmer 6 | . . 6 . . Grunt 9 | . 9 . . . Assembled 1 | . . . . 1 Best Kill Streak 3 | . 3 3 . 1 Combat Bots Only 3 | . 2 3 . 1 Max Kills in Single Turn 1 | . 1 1 . 1 Gunslinging . | . . . . . Exploded . | . . . . . Melee . | . . . . . Uniques/NPCs Destroyed . | . . . . . Combat | -11 -10 -10 -10 -9 -------- Run | Yrd Mat Min Exi Min Hostile Shots Fired 144 | . 75 36 . 33 Missed 46 | . 23 12 . 11 Damage Taken 911 | . 516 132 . 263 Core 260 | . 120 38 . 102 Absorbed by Shields . | . . . . . Ignored by Resistances 285 | . 160 48 . 77 Core Remaining (%) 100 | 100 . . . . Volleys Fired 69 | . 41 20 . 8 Largest 2 | . 2 2 . 2 Hottest 55 | . 55 55 . 20 Shots Fired 127 | . 74 40 . 13 Gun 61 | . 33 20 . 8 Cannon 61 | . 41 20 . . Launcher . | . . . . . Special 5 | . . . . 5 Kinetic 122 | . 74 40 . 8 Thermal . | . . . . . Explosive . | . . . . . Electromagnetic . | . . . . . Robot Hit Streak 28 | . 28 12 . 14 Robot Miss Streak 4 | . 4 4 . . Penetration Max . | . . . . . Secondary Targets . | . . . . . Shots Hit Robots 84 | . 59 13 . 12 Core Hits 29 | . 18 6 . 5 Critical Kills . | . . . . . Critical Parts Destroyed . | . . . . . Critical Strikes 3 | . 3 . . . Blast 3 | . 3 . . . Melee Attacks 1 | . 1 . . . Impact . | . . . . . Slashing . | . . . . . Piercing . | . . . . . Sneak Attacks 1 | . 1 . . . Combat Hostiles . | . . . . . Follow-up Attacks . | . . . . . Damage Inflicted 1122 | . 890 170 . 62 Guns 479 | . 356 61 . 62 Cannons 643 | . 534 109 . . Explosions . | . . . . . Melee . | . . . . . Ramming . | . . . . . Kinetic 1122 | . 890 170 . 62 Thermal . | . . . . . Explosive . | . . . . . Electromagnetic . | . . . . . Impact . | . . . . . Slashing . | . . . . . Piercing . | . . . . . Highest Corruption . | . . . . . Average Corruption . | . . . . . Corruption Purged . | . . . . . Corruption Blocked . | . . . . . Overload Shots . | . . . . . Overflow Damage . | . . . . . Projectiles . | . . . . . Explosions . | . . . . . Melee . | . . . . . Knockbacks 12 | . 10 2 . . Impact . | . . . . . Kinetic 10 | . 8 2 . . Secondary 2 | . 2 . . . Self-Inflicted Damage . | . . . . . Shots . | . . . . . Rammed . | . . . . . Targets Rammed . | . . . . . Kicked . | . . . . . Crushed . | . . . . . Highest Temperature 28 | . 28 28 . . Average Temperature 13 | . 13 13 . . Received Heat Transfer 372 | . 372 . . . Siege Activations . | . . . . . Robots Corrupted . | . . . . . Combat Hostiles . | . . . . . Parts Fried . | . . . . . Impact Corruptions . | . . . . . Robots Melted . | . . . . . Combat Hostiles . | . . . . . Parts Melted . | . . . . . Heat Transferred . | . . . . . Parts Sabotaged . | . . . . . Parts Stolen . | . . . . . Parts Stripped . | . . . . . Power Chain Reactions . | . . . . . Alert | -11 -10 -10 -10 -9 ------- Run | Yrd Mat Min Exi Min Peak Influence 146 | . 132 146 . 15 Initial 16 | . . 16 . . Average 56 | . 59 63 . 3 Maximum Alert Level . | . . . . . Low Security (%) 100 | 100 100 100 . 100 Level 1 . | . . . . . Level 2 . | . . . . . Level 3 . | . . . . . Level 4 . | . . . . . Level 5 . | . . . . . High Security . | . . . . . Max Security . | . . . . . Squads Dispatched 2 | . 2 . . . Investigation 2 | . 2 . . . Extermination . | . . . . . Reinforcement . | . . . . . Assault . | . . . . . Garrison . | . . . . . Intercept . | . . . . . Searches Triggered . | . . . . . Construction Impeded . | . . . . . Haulers Reinforced . | . . . . . Active Scanning Responses . | . . . . . Cargo Convoy Interrupts . | . . . . . Stealth | -11 -10 -10 -10 -9 --------- Run | Yrd Mat Min Exi Min Distress Signals 1 | . 1 . . . Communications Jammed . | . . . . . Distress Signals . | . . . . . Times Spotted 44 | . 14 10 . 20 Peak Tracking Total 20 | . 3 3 . 20 Tactical Retreats 5 | . 2 2 . 1 Traps | -11 -10 -10 -10 -9 ------- Run | Yrd Mat Min Exi Min Traps Triggered 1 | . 1 . . . Indirectly . | . . . . . Trap Hack Attempts . | . . . . . Triggered . | . . . . . Disarmed 1 | . 1 . . . Reprogrammed . | . . . . . Reused . | . . . . . Traps Extracted . | . . . . . Installed . | . . . . . Triggered . | . . . . . Machines | -11 -10 -10 -10 -9 ---------- Run | Yrd Mat Min Exi Min Machines Disabled 1 | . 1 . . . Max in Single Turn 1 | . 1 . . . Machines Repaired . | . . . . . Machines Dismantled . | . . . . . Machines Sabotaged . | . . . . . Overloaded Fab Kills . | . . . . . Hacking | -11 -10 -10 -10 -9 --------- Run | Yrd Mat Min Exi Min Machines Accessed 8 | . 3 . 5 . Terminals 3 | . 3 . . . Fabricators . | . . . . . Repair Stations . | . . . . . Recycling Units . | . . . . . Scanalyzers . | . . . . . Garrison Access . | . . . . . Total Hacks 59 | . 9 . 50 . Successful 57 | . 7 . 50 . Failed 2 | . 2 . . . Catastrophic . | . . . . . Database Lockouts . | . . . . . Manual 5 | . . . 5 . Terminals 9 | . 9 . . . Fabricators . | . . . . . Repair Stations . | . . . . . Recycling Units . | . . . . . Scanalyzers . | . . . . . Garrison Access . | . . . . . Terminal Hacks 57 | . 7 . 50 . Record 50 | . 1 . 49 . Prototype ID Bank 1 | . 1 . . . Disarm Traps 1 | . 1 . . . Dispatch Records 1 | . 1 . . . Patrol Status 1 | . 1 . . . Investigation Status 1 | . 1 . . . Recall Investigation 1 | . 1 . . . Derelict Proto ID Bank 1 | . . . 1 . Fabricator Hacks . | . . . . . Repair Station Hacks . | . . . . . Recycling Unit Hacks . | . . . . . Scanalyzer . | . . . . . Garrison Access Hacks . | . . . . . Unauthorized Hacks . | . . . . . Terminals . | . . . . . Fabricators . | . . . . . Repair Stations . | . . . . . Recycling Units . | . . . . . Scanalyzers . | . . . . . Garrison Access . | . . . . . Data Cores Recovered . | . . . . . Used . | . . . . . Hacking Detections 1 | . 1 . . . Full Trace Events 1 | . 1 . . . Feedback Events . | . . . . . Feedback Blocked . | . . . . . Robot Schematics Acquired . | . . . . . Robots Built . | . . . . . Authchips . | . . . . . Time . | . . . . . Total Robot Build Rating . | . . . . . Part Schematics Acquired . | . . . . . Parts Built . | . . . . . Authchips . | . . . . . Time . | . . . . . Total Part Build Rating . | . . . . . Parts Repaired . | . . . . . Time . | . . . . . Parts Recycled . | . . . . . Recycled Matter . | . . . . . Retrieved Matter . | . . . . . Retrieved Components . | . . . . . Parts Scanalyzed . | . . . . . Part Schematics Acquired . | . . . . . Parts Damaged . | . . . . . Bothacking | -11 -10 -10 -10 -9 ------------ Run | Yrd Mat Min Exi Min Used RIF Installer . | . . . . . Robots Hacked 1 | . 1 . . . Non-combat 1 | . 1 . . . Combat . | . . . . . Robot Hacks Applied 1 | . 1 . . . parse_system 1 | . 1 . . . Relay Couplers Released . | . . . . . Fabnet Peak Effective % . | . . . . . Robots Rewired . | . . . . . Allies Hacked . | . . . . . Hacks Repelled . | . . . . . Allies | -11 -10 -10 -10 -9 -------- Run | Yrd Mat Min Exi Min Total Allies 4 | . . . . 4 Largest Group 2 | . . . . 2 Highest-Rated Group 16 | . . . . 16 Highest-Rated Ally 9 | . . . . 9 Total Orders . | . . . . . Ally Attacks 4 | . . . . 4 Total Damage 101 | . . . . 101 Kills 1 | . . . . 1 Allies Corrupted . | . . . . . Allies Melted . | . . . . . Field Lobotomies 4 | . . . . 4 Intel | -11 -10 -10 -10 -9 ------- Run | Yrd Mat Min Exi Min Robot Analysis Total . | . . . . . Derelict Logs Recovered 1 | . . 1 . . Drone Launches . | . . . . . Drone Recoveries . | . . . . . Exploration | -11 -10 -10 -10 -9 ------------- Run | Yrd Mat Min Exi Min Turns Passed 3210 | 58 1154 385 1568 45 Spaces Moved 1835 | 34 635 182 971 13 Core 6 | 6 . . . . Treads 1829 | 28 635 182 971 13 Legs . | . . . . . Wheels . | . . . . . Hover . | . . . . . Flight . | . . . . . Fastest Speed 50 | 50 160 160 160 160 Average Speed 159 | 140 160 160 160 160 Slowest Speed 160 | 160 160 160 160 160 Overloaded Moves . | . . . . . Propulsion Burnouts . | . . . . . Robots Hopped . | . . . . . Cave-ins Triggered . | . . . . . Time Travels 1 | . . . 1 . Exploration Rate (%) 49 | 4 99 44 94 6 Regions Visited 4 Branch Regions 3 Pre-discovered Areas 1 | . . . 1 . Known Exits Taken . | . . . . . Unknown Exits Taken 4 | 1 1 1 1 . Scrap Searched 1 | . . 1 . . Spaces Dug . | . . . . . Terrain Destroyed . | . . . . . Melee . | . . . . . Projectile . | . . . . . AOE . | . . . . . Terrain Rammed . | . . . . . Walls Destroyed . | . . . . . Machines Disabled . | . . . . . Actions | -11 -10 -10 -10 -9 --------- Run | Yrd Mat Min Exi Min Total 1990 | 44 697 240 988 21 Wait 51 | . 9 39 3 . Move 1831 | 33 634 181 970 13 Hop . | . . . . . Pick Up 16 | 6 5 . 5 . Fast Attach . | . . . . . Attach 10 | 5 4 . 1 . Detach . | . . . . . Swap 4 | . 3 . 1 . Drop 5 | . . . 5 . Fire 69 | . 41 20 . 8 Melee 1 | . 1 . . . Ram . | . . . . . Kick . | . . . . . Crush . | . . . . . Escape Stasis . | . . . . . Rewire 3 | . . . 3 . Trap . | . . . . . Miscellaneous . | . . . . . Route ------- -11/Scrapyard -10/Materials (discovered 5 exits: [*Mat x3] / [*Min x2]) -10/Mines (discovered 2 exits: [*Mat] / *Exi) -10/Exiles (discovered 2 exits: [*Min x2]) -9/Mines History --------- Turn | Location | Event 5 | -11/Scrapyard | Discovered new exit (range 14) 59 | -11/Scrapyard | Entered Materials 317 | -10/Materials | Build established: Mutant 353 | -10/Materials | Discovered new exit (range 14) 489 | -10/Materials | Discovered new exit (range 4) 714 | -10/Materials | Discovered new exit (range 11) 716 | -10/Materials | Discovered new exit (range 11) 1065 | -10/Materials | Discovered new exit (range 15) 1213 | -10/Materials | Entered Mines 1223 | -10/Mines | Met a Derelict bent on vengeance 1371 | -10/Mines | Discovered new exit (range 11) 1479 | -10/Mines | Build established: Infiltrator-Mutant 1520 | -10/Mines | Discovered new exit (range 11) 1527 | -10/Mines | Core integrity fell below 50% 1550 | -10/Mines | Learned Materials trap positions 1592 | -10/Mines | Deemed a non-threat by the Exiles lab entrance 1598 | -10/Mines | Entered Exiles 1641 | -10/Exiles | Met 8R-AWN 1667 | -10/Exiles | Met EX-HEX 1780 | -10/Exiles | Met EX-DEC 1858 | -10/Exiles | Learned location of Zion (-7) 2029 | -10/Exiles | Visited The Gauntlet 2315 | -10/Exiles | Met EX-BIN 2338 | -10/Exiles | Aligned with FarCom system 2339 | -10/Exiles | Given EX-Vault access code 2431 | -10/Exiles | Opened EX-Vault 2439 | -10/Exiles | Found Prototype Special Weapon 2448 | -10/Exiles | Found Prototype Device 2457 | -10/Exiles | Identified Field Lobotomy Kit 2458 | -10/Exiles | Identified Chronowheel 2458 | -10/Exiles | Activated Chronowheel 2458 | -10/Exiles | Spacetime reconverged on an earlier point 2460 | -10/Exiles | Found Prototype Flight Unit 2464 | -10/Exiles | Identified Flying Fortress v7 2499 | -10/Exiles | Warned to stay clear of 0b10 Research branches 2737 | -10/Exiles | Discovered new exit (range 10) 2765 | -10/Exiles | Build established: Mutant 2970 | -10/Exiles | Discovered new exit (range 14) 3166 | -10/Exiles | Stole two prototypes: Field Lobotomy Kit, Flying Fortress v7 3166 | -10/Exiles | Entered Mines 3177 | -9/Mines | Assembled infested the area 3182 | -9/Mines | Assisted by a Guerilla fighting off Assembled 3187 | -9/Mines | Assimilated as-98005 with FLK Orb 3195 | -9/Mines | Assimilated as-86445 with FLK Orb 3199 | -9/Mines | Assimilated as-08838 with FLK Orb 3202 | -9/Mines | Assimilated as-66656 with FLK Orb 3207 | -9/Mines | Core integrity fell below 20% 3211 | -9/Mines | Destroyed by as-21320 with Assembled Blade Last Messages --------------- K-01 Serf collects debris. as-98005 assimilated. K-01 Serf destroyed. as-98005 destroyed. K-01 Serf collects debris. as-38390 destroyed. as-42879 destroyed. Ion Engine destroyed. as-86445 assimilated. Destroyed Asb. Hover Unit. as-54388 destroyed. as-08838 assimilated. as-86445 destroyed. as-08838 destroyed. Lgt. Treads destroyed. Field Lobotomy Kit expended. as-66656 assimilated. as-79675 sneak attacks. as-66656 destroyed. Acquired 19 matter. Map ----- +----------------------------------------------------+ | ?????????????????????????????????????? | | ?????????????????????????????????????? | | ?????????????????????????????????????? | | ?????????????????????????????????????? | | ?????????????????????????????????????? | | ?????????????????????????????????????? | | ?????????????????????????????????????? | | ?????????????????????????????????????? | | ?????????????????????????????????????? | | ?????????????????????????????????????? | | ?????????????????????????????????????? | | ?????????????????????????????????????? | | ?????????????????????????????????????? | | ???????????????? ???????????????????? | | ??????????????? ??????????????????? | | ???????????????? ?????????????????? | | ????????????????? ????????????????? | | ?????????????????? ????????????????? | | ??????????????????? ???????????????? | | ???????????????????# ???????????????? | | ???????????????????## ##?#####??????? | | ???????????????????## #########?????? | | ???????????????????##* a### ###?????? | | ???????????????????# !*%=% ##?????? | | ???????????????????????=aaa ##?????? | | ???????????????????????##@ ###?????? | | ???????????????????????## ####??????? | | ???????????????????????## ####??????? | | ???????????????????????## ####??????? | | ???????????????????????## ##??????? | | ???????????????????????##### ##??????? | | ??????????????????????? #### ##??????? | | ??????????????????????? #### ######??? | | ??????????????????????? #### ######??? | | ??????????????????????? # ##??? | | ??????????????????????? # ##??? | | ??????????????????????? # ##??? | | ??????????????????????? # ##??? | | ??????????????????????? ###########??? | | ??????????????????????? ###########??? | | ?????????????????????????????????????? | | ?????????????????????????????????????? | | ?????????????????????????????????????? | | ?????????????????????????????????????? | | ?????????????????????????????????????? | | ?????????????????????????????????????? | | ?????????????????????????????????????? | | ?????????????????????????????????????? | | ?????????????????????????????????????? | | ?????????????????????????????????????? | +----------------------------------------------------+ Best States ------------- Heat Dissipation 25 Energy Generation 10 Energy Capacity 250 Matter Stores 300 Matter Capacity 300 Sight Range 16 Terrain Scan Density 10 ECM Strength 1 Resistance: KI 20 Resistance: TH 20 Resistance: EX 20 Resistance: EM 20 Resistance: I 20 Resistance: S 20 Resistance: P 20 Evasion (%) 40 Recoil Reduction 2 Offensive Hacking 10 Item Schematics ----------------- None Robot Schematics ------------------ None Fabricated ------------ Nothing Alien Tech Used ----------------- None Achievements -------------- Hunted Librarian Tourist Challenges ------------ None Game ------ Seed SuperquantumBraceRifle Manual? 0 Play Time 00:22:15 Cumulative 2.7 hours Start 2024.08.13 @ 22:24:24 End 2024.08.13 @ 22:47:00 Sessions 1 Manual Loads 0 Difficulty Adventurer Special Mode None Game No. 5 Rogue 0 Adventurer 5 Explorer 0 Win Type - Total 0 Types 0/0/0/0/0/0/0/0/0 Lore% 6 Gallery% 7 Achievement% 10 Wizard Run 0 Options --------- Layout 1 ASCII 0 Keyboard 0 Movement Mouse Keybinds 0 Fullscreen 1 Font 24/Smallcaps Map View 50x35 Zoom Use 0% Tactical HUD 0 Map Filters NONE Filters NONE Steam 1 RUN: f0e99033-a34c-4e3b-9283-7a651c170672